bitfinex/quotes_BTCUSD_20240731
["timestamp","ask_amount","ask_price","bid_price","bid_amount"]
[1722434665517,0.00844,66805.0,66804.0,1.20699002]
[1722434665784,0.00844,66805.0,66804.0,0.156691]
[1722434666048,0.00844,66805.0,66802.0,0.299389]
[1722434666297,0.04477199,66804.0,66802.0,0.14955172]
[1722434666548,0.04477199,66803.0,66802.0,0.14955172]
[1722434666775,0.04477199,66803.0,66802.0,0.24955172]
[1722434666993,0.07557803,66805.0,66802.0,0.39924772]
[1722434666994,0.06713803,66804.0,66802.0,0.39924772]
[1722434667432,0.08951738,66804.0,66802.0,0.39924672]
[1722434667789,0.00844,66805.0,66802.0,0.24955172]
[1722434668019,0.08956704,66804.0,66803.0,0.44908]
[1722434668468,0.1203988,66805.0,66804.0,0.149691]
[1722434668702,0.1203988,66805.0,66804.0,0.449074]
[1722434669429,0.1203988,66805.0,66804.0,1.01917079]
[1722434669674,0.1203988,66805.0,66804.0,1.46075379]
[1722434669675,0.00844,66805.0,66804.0,1.46075379]
[1722434670358,0.05323116,66805.0,66804.0,1.46775379]
[1722434670601,0.00844,66805.0,66804.0,1.46775379]
[1722434671133,0.0532322,66805.0,66804.0,1.46775379]
[1722434671390,0.0532322,66805.0,66804.0,1.16837079]
[1722434671617,0.0532322,66805.0,66804.0,1.03217079]
[1722434671843,0.0532322,66805.0,66804.0,1.31855379]
[1722434672368,0.0532322,66805.0,66804.0,1.57375379]
[1722434672599,0.00844,66805.0,66804.0,1.59675379]
[1722434672855,0.00844,66805.0,66804.0,1.58675379]
[1722434673084,0.00844,66805.0,66804.0,1.60075379]
[1722434673357,0.00844,66805.0,66804.0,1.90013679]
[1722434673592,0.0005,66809.0,66808.0,1.077777]
[1722434673815,0.0005,66809.0,66808.0,1.38802872]
[1722434674048,0.0005,66809.0,66808.0,1.68162872]
[1722434675240,0.0005,66809.0,66808.0,1.69562872]
[1722434675469,0.0005,66809.0,66808.0,1.83111002]
[1722434676141,0.0005,66809.0,66808.0,1.84511002]
[1722434677007,0.0980121,66815.0,66808.0,1.84511002]
[1722434677008,0.02159416,66812.0,66811.0,0.303475]
[1722434677236,0.00844,66815.0,66811.0,0.303475]
[1722434677237,0.00844,66815.0,66814.0,0.758345]
[1722434677452,0.00844,66815.0,66814.0,1.30723472]
[1722434677689,0.00844,66815.0,66814.0,1.33023472]
[1722434677921,0.00844,66815.0,66814.0,1.62957272]
[1722434678137,0.00844,66815.0,66814.0,1.92125402]
[1722434678358,0.00844,66815.0,66814.0,1.94125402]
[1722434678798,0.00844,66816.0,66815.0,0.01]
[1722434679039,0.00844,66816.0,66815.0,1.43941672]
[1722434679502,0.00844,66816.0,66815.0,1.14008372]
[1722434679723,0.00844,66816.0,66815.0,1.09355022]
[1722434680221,0.00844,66816.0,66815.0,0.79421722]
[1722434680440,0.05319808,66816.0,66815.0,0.79421722]
[1722434680686,0.05319808,66816.0,66815.0,0.94651722]
[1722434680917,0.05319808,66816.0,66815.0,1.24585022]
[1722434680918,0.00844,66816.0,66815.0,1.24585022]
[1722434681135,0.00844,66816.0,66815.0,1.54518322]
[1722434682278,0.00844,66816.0,66815.0,1.53118322]
[1722434682494,0.00844,66816.0,66815.0,1.55418322]
[1722434682725,0.00844,66816.0,66815.0,1.57918322]
[1722434683229,0.00844,66816.0,66815.0,1.56518322]
[1722434683896,0.00844,66816.0,66815.0,1.24285022]
[1722434684127,0.00844,66816.0,66815.0,1.54218322]
[1722434684391,0.00844,66816.0,66815.0,1.54418322]
[1722434684611,0.00844,66816.0,66815.0,1.11955022]
[1722434684820,0.00844,66816.0,66815.0,0.42521772]
[1722434685040,0.0531816,66816.0,66815.0,0.71155072]
[1722434685259,0.0531816,66816.0,66815.0,1.01088372]
[1722434686360,0.00844,66816.0,66815.0,1.53559802]
[1722434686597,0.00844,66816.0,66815.0,1.52159802]
[1722434687047,0.00844,66816.0,66815.0,1.53559802]
[1722434687472,0.00844,66816.0,66815.0,1.52159802]
[1722434687692,0.00844,66816.0,66815.0,1.53559802]
[1722434688181,0.00844,66816.0,66815.0,1.55859802]
[1722434688648,0.00844,66816.0,66815.0,1.93423102]
[1722434689106,0.00844,66816.0,66815.0,1.94723102]
[1722434689321,0.00844,66816.0,66815.0,1.92023102]
[1722434689752,0.00844,66816.0,66815.0,1.93423102]
[1722434690200,0.00844,66816.0,66815.0,1.94823102]
[1722434690655,0.00844,66816.0,66815.0,1.95423102]
[1722434690907,0.0151602,66819.0,66818.0,1.35694]
[1722434691133,0.0151602,66819.0,66818.0,1.82419172]
[1722434691346,0.0151602,66819.0,66818.0,1.92419172]
[1722434691793,0.0151602,66819.0,66818.0,1.94419172]
[1722434692662,0.0151602,66819.0,66818.0,1.95819172]
[1722434692882,0.0151602,66819.0,66818.0,2.08767302]
[1722434693102,0.0151602,66819.0,66818.0,2.07367302]
[1722434693555,0.0151602,66819.0,66818.0,2.08767302]
[1722434693771,0.0151602,66819.0,66818.0,2.07367302]
[1722434694220,0.04470993,66828.0,66827.0,1.26108]
[1722434694451,0.0005,66829.0,66828.0,0.748187]
[1722434694693,0.0005,66829.0,66828.0,1.19701372]
[1722434694919,0.04521736,66829.0,66828.0,1.19701372]
[1722434695415,0.04521736,66829.0,66828.0,1.27461372]
[1722434695638,0.0005,66829.0,66828.0,1.37461372]
[1722434695825,0.0005,66829.0,66828.0,1.52409502]
[1722434697432,0.00844,66839.0,66835.0,0.2136]
[1722434697664,0.0447327,66838.0,66837.0,0.149617]
[1722434697906,0.00844,66839.0,66837.0,0.149617]
[1722434697907,0.00844,66839.0,66838.0,0.748075]
[1722434698140,0.0452327,66849.0,66841.0,0.01]
[1722434698360,0.0005,66849.0,66848.0,0.662379]
[1722434698631,0.0005,66849.0,66848.0,1.47654062]
[1722434698872,0.0005,66849.0,66848.0,1.57654062]
[1722434700471,0.0005,66849.0,66848.0,1.28535462]
[1722434700688,0.0005,66849.0,66848.0,1.27735462]
[1722434701151,0.0005,66849.0,66848.0,0.70698262]
[1722434701366,0.0645,66849.0,66848.0,0.49115172]
[1722434701806,0.1462,66849.0,66848.0,0.17755172]
[1722434702022,0.1462,66849.0,66848.0,0.028]
[1722434702481,0.7828028,66849.0,66848.0,0.028]
[1722434702700,0.37055412,66849.0,66848.0,0.028]
[1722434702919,0.66973512,66849.0,66848.0,0.028]
[1722434703137,0.22096412,66849.0,66848.0,0.028]
[1722434703367,0.22096412,66849.0,66836.0,0.2136]
[1722434703593,0.04467537,66843.0,66840.0,0.149611]
[1722434703828,0.04467537,66845.0,66842.0,0.51281]
[1722434704046,0.06701305,66847.0,66843.0,0.14955172]
[1722434704047,0.04467537,66847.0,66843.0,0.14955172]
[1722434704277,0.04467537,66848.0,66843.0,0.44875972]
[1722434704498,0.04467537,66848.0,66844.0,0.299203]
[1722434704716,0.04467537,66847.0,66845.0,0.44875072]
[1722434704932,0.04467537,66847.0,66846.0,0.149596]
[1722434705147,0.04467537,66848.0,66846.0,0.29914772]
[1722434705387,0.04467537,66848.0,66847.0,0.29914672]
[1722434705606,0.21321305,66849.0,66847.0,0.14955172]
[1722434705831,0.1462,66849.0,66847.0,0.14955172]
[1722434706066,0.1462,66849.0,66842.0,0.512811]
[1722434706067,0.2879892,66849.0,66842.0,0.2136]
[1722434706315,0.04468366,66846.0,66843.0,0.29915572]
[1722434706543,0.06702508,66848.0,66843.0,0.14955172]
[1722434706544,0.04468366,66845.0,66843.0,0.14955172]
[1722434707179,0.04468366,66844.0,66843.0,0.14955172]
[1722434707874,0.04468366,66844.0,66843.0,0.16155172]
[1722434708094,0.10988366,66844.0,66843.0,0.16155172]
[1722434708311,0.10988366,66844.0,66843.0,0.15455172]
[1722434708529,0.0652,66844.0,66843.0,0.15455172]
[1722434708740,0.10989639,66844.0,66843.0,0.16355172]
[1722434708955,0.10989641,66844.0,66843.0,0.16355172]
[1722434709171,0.1428,66844.0,66843.0,0.009]
[1722434709396,0.1428,66844.0,66843.0,0.015]
[1722434709397,0.292402,66844.0,66843.0,0.015]
[1722434709614,1.03422838,66844.0,66843.0,0.015]
[1722434709854,1.19934315,66844.0,66843.0,0.009]
[1722434710096,0.90013915,66844.0,66843.0,0.009]
[1722434710312,0.90013915,66844.0,66843.0,0.016]
[1722434710745,0.90013915,66844.0,66843.0,0.007]
[1722434710746,1.36019353,66844.0,66843.0,0.007]
[1722434711206,1.36019353,66844.0,66816.0,0.7964]
[1722434711207,0.0655,66832.0,66818.0,0.66218472]
[1722434711428,0.0655,66832.0,66822.0,0.14965]
[1722434711429,0.04471958,66823.0,66822.0,0.14965]
[1722434711649,0.04471958,66823.0,66822.0,0.29920172]
[1722434711866,0.04471958,66823.0,66822.0,0.59850372]
[1722434712091,0.04472434,66824.0,66823.0,0.299298]
[1722434712319,0.04472434,66824.0,66823.0,0.14955172]
[1722434712564,0.06708651,66824.0,66823.0,0.14955172]
[1722434712792,0.08944868,66825.0,66823.0,0.14955172]
[1722434713020,0.0754,66831.0,66823.0,0.14955172]
[1722434713021,0.06709972,66824.0,66823.0,0.14955172]
[1722434713236,0.06709972,66824.0,66823.0,0.29920072]
[1722434713455,0.08944868,66825.0,66823.0,0.15455172]
[1722434713740,0.06711487,66824.0,66823.0,0.15455172]
[1722434713964,0.08944868,66825.0,66823.0,0.005]
[1722434713965,0.10957463,66825.0,66823.0,0.005]
[1722434714183,0.17261085,66824.0,66823.0,0.005]
[1722434714407,0.1726649,66824.0,66823.0,0.30420072]
[1722434714652,0.13417303,66830.0,66827.0,0.149639]
[1722434714874,0.11188402,66828.0,66827.0,0.2136]
[1722434715125,0.1118832,66828.0,66827.0,0.2136]
[1722434715348,0.1118832,66828.0,66823.0,0.005]
[1722434715573,0.08952959,66825.0,66824.0,0.14955172]
[1722434715790,0.11191435,66825.0,66824.0,0.14955172]
[1722434716271,0.13425984,66830.0,66821.0,0.363253]
[1722434716514,0.1381,66831.0,66819.0,0.299311]
[1722434716515,0.11192859,66824.0,66822.0,0.14955172]
[1722434716737,0.11192859,66824.0,66815.0,0.2216]
[1722434716738,0.07476412,66826.0,66821.0,0.14955172]
[1722434716961,0.13425984,66824.0,66821.0,0.14955172]
[1722434717415,0.0613,66825.0,66824.0,0.005]
[1722434717634,0.0613,66825.0,66815.0,0.2216]
[1722434717635,0.0603,66825.0,66815.0,0.2216]
[1722434717853,0.0603,66825.0,66816.0,0.14955172]
[1722434717854,0.11195529,66818.0,66816.0,0.14955172]
[1722434718075,0.11195529,66818.0,66816.0,0.29921472]
[1722434718283,0.11195569,66818.0,66816.0,0.14955172]
[1722434718743,0.11196561,66817.0,66816.0,0.14955172]
[1722434718974,0.11196571,66818.0,66816.0,0.14955172]
[1722434719198,0.11296571,66818.0,66816.0,0.16355172]
[1722434719429,0.08957,66817.0,66816.0,0.16355172]
[1722434719678,0.001,66818.0,66816.0,0.16355172]
[1722434719894,0.13434682,66820.0,66816.0,0.14955172]
[1722434720112,0.13434682,66821.0,66816.0,0.14955172]
[1722434720547,0.13434682,66821.0,66816.0,0.29921572]
[1722434720766,0.13434682,66820.0,66816.0,0.14955172]
[1722434720979,0.001,66817.0,66816.0,0.16355172]
[1722434721182,0.001,66817.0,66816.0,0.39663169]
[1722434722116,0.001,66817.0,66816.0,0.69596069]
[1722434722563,0.11296703,66817.0,66816.0,0.99528969]
[1722434722784,0.06817622,66817.0,66816.0,1.54001869]
[1722434723009,0.06717376,66819.0,66818.0,0.44898]
[1722434723248,0.08956932,66821.0,66819.0,0.74829]
[1722434723249,0.06717376,66820.0,66819.0,0.74829]
[1722434723482,0.04477858,66820.0,66819.0,0.59852572]
[1722434723721,0.001,66821.0,66820.0,0.320755]
[1722434723722,0.04578029,66821.0,66820.0,0.320755]
[1722434723937,0.001,66824.0,66823.0,0.748245]
[1722434724176,0.04477994,66829.0,66828.0,0.748187]
[1722434724426,0.0827,66844.0,66828.0,0.14955172]
[1722434724645,0.06716312,66830.0,66829.0,0.29918672]
[1722434724896,0.06716312,66831.0,66830.0,0.149633]
[1722434725119,0.08955579,66831.0,66830.0,0.41031889]
[1722434725353,0.08955579,66832.0,66831.0,0.149631]
[1722434725577,0.08955579,66833.0,66832.0,0.149628]
[1722434725806,0.08955579,66835.0,66834.0,0.299248]
[1722434726030,0.11193854,66838.0,66834.0,0.44879972]
[1722434726251,0.08954957,66836.0,66835.0,0.29917372]
[1722434726475,0.08954957,66836.0,66835.0,0.14955172]
[1722434726915,0.11193854,66837.0,66835.0,0.14955172]
[1722434727156,0.11193854,66837.0,66835.0,0.29917372]
[1722434727374,0.11193854,66837.0,66836.0,0.149619]
[1722434727619,0.11193866,66838.0,66836.0,0.14955172]
[1722434727835,0.11193866,66837.0,66836.0,0.14955172]
[1722434728487,0.11193866,66838.0,66836.0,0.14955172]
[1722434728956,0.11193866,66837.0,66836.0,0.14955172]
[1722434729420,0.11193866,66837.0,66836.0,0.29917072]
[1722434729635,0.11193866,66838.0,66837.0,0.149617]
[1722434730548,0.11193866,66838.0,66836.0,0.15555172]
[1722434730780,0.11193866,66838.0,66836.0,0.15955172]
[1722434731010,0.0609,66843.0,66836.0,0.006]
[1722434731011,0.07476412,66842.0,66836.0,0.006]
[1722434731251,0.0816,66841.0,66831.0,0.2136]
[1722434731516,0.0816,66841.0,66837.0,0.003]
[1722434731750,0.13434167,66839.0,66837.0,0.003]
[1722434732003,0.15312901,66838.0,66837.0,0.003]
[1722434732218,0.28747068,66838.0,66825.0,0.149644]
[1722434732483,0.14367068,66837.0,66836.0,0.003]
[1722434732704,0.00932901,66837.0,66836.0,0.003]
[1722434733708,0.0613,66836.0,66826.0,0.14955172]
[1722434733957,0.0613,66836.0,66826.0,0.29919372]
[1722434734224,0.13438098,66833.0,66830.0,0.149632]
[1722434734460,0.13438098,66833.0,66827.0,0.149639]
[1722434734690,0.13438098,66833.0,66828.0,0.149637]
[1722434734915,0.13438098,66833.0,66826.0,0.14955172]
[1722434734916,0.13438098,66832.0,66827.0,0.299276]
[1722434735165,0.13438098,66834.0,66832.0,0.149628]
[1722434735385,0.08957588,66834.0,66833.0,0.23462748]
[1722434735613,0.11197001,66835.0,66833.0,0.14955172]
[1722434735844,0.13438098,66840.0,66839.0,0.448839]
[1722434736082,0.13436932,66841.0,66840.0,0.299222]
[1722434736556,0.13436932,66845.0,66844.0,0.149602]
[1722434736561,0.11196008,66842.0,66841.0,0.29834537]
[1722434736777,0.27713438,66854.0,66842.0,0.748032]
[1722434736778,0.06716854,66843.0,66842.0,0.748032]
[1722434736904,0.13445932,66852.0,66842.0,0.748032]
[1722434736905,9e-05,66852.0,66848.0,0.149593]
[1722434737105,0.13442302,66852.0,66848.0,0.59833072]
[1722434737737,0.13442302,66852.0,66848.0,0.89751672]
[1722434738416,0.11242506,66849.0,66848.0,1.19670272]
[1722434738662,0.09003629,66849.0,66848.0,1.38097299]
[1722434738872,0.0005,66849.0,66848.0,1.38097299]
[1722434739313,0.06764209,66849.0,66848.0,1.38097299]
[1722434739537,0.06763903,66849.0,66848.0,1.38097299]
[1722434739756,0.06763903,66849.0,66848.0,1.38997299]
[1722434740258,0.0005,66849.0,66848.0,1.38097299]
[1722434740469,0.06763089,66849.0,66848.0,1.38097299]
[1722434740687,0.06763089,66849.0,66848.0,0.90751672]
[1722434741144,0.20443089,66849.0,66848.0,0.16655172]
[1722434741362,0.20443089,66849.0,66848.0,0.01]
[1722434741363,0.1373,66849.0,66848.0,0.01]
[1722434741545,0.1373,66849.0,66848.0,0.02]
[1722434741803,0.27156179,66849.0,66848.0,0.01]
[1722434742020,0.1373,66849.0,66848.0,0.00638892]
[1722434742259,0.1373,66849.0,66848.0,0.019]
[1722434742502,0.1373,66849.0,66848.0,0.02538892]
[1722434742503,0.27156179,66849.0,66848.0,0.02538892]
[1722434742751,0.27156179,66849.0,66848.0,0.008]
[1722434742958,0.1373,66849.0,66848.0,0.018]
[1722434743617,0.1496,66845.0,66830.0,0.299265]
[1722434743848,0.04475532,66832.0,66830.0,0.14955172]
[1722434744120,0.04475532,66832.0,66823.0,0.214513]
[1722434744121,0.0622,66831.0,66823.0,0.000913]
[1722434744346,0.19646598,66831.0,66825.0,0.149643]
[1722434744588,0.19646598,66831.0,66824.0,0.14955172]
[1722434744589,0.11190913,66826.0,66824.0,0.299293]
[1722434744806,0.11191973,66825.0,66823.0,0.000913]
[1722434745027,0.1119223,66824.0,66823.0,0.15046472]
[1722434745248,0.11192202,66824.0,66823.0,0.30011272]
[1722434745904,0.13426598,66828.0,66824.0,0.149646]
[1722434746117,0.13426598,66829.0,66824.0,0.002]
[1722434746561,0.13432494,66829.0,66823.0,0.30011272]
[1722434746832,0.0622,66831.0,66823.0,0.15546472]
[1722434746833,0.13432494,66828.0,66823.0,0.15546472]
[1722434747053,0.12932494,66828.0,66825.0,0.149643]
[1722434747238,0.0622,66831.0,66825.0,0.149643]
[1722434747514,0.0622,66831.0,66830.0,0.005]
[1722434747940,0.15113315,66835.0,66830.0,0.005]
[1722434747941,0.0621,66835.0,66830.0,0.005]
[1722434748379,0.0621,66835.0,66827.0,0.14964]
[1722434748602,0.00932999,66834.0,66829.0,0.149634]
[1722434748821,0.0621,66835.0,66830.0,0.149633]
[1722434748822,0.002,66832.0,66830.0,0.149633]
[1722434749543,0.002,66832.0,66831.0,0.448893]
[1722434749770,0.002,66832.0,66831.0,0.59844472]
[1722434749996,0.081,66836.0,66832.0,0.299255]
[1722434750212,0.081,66836.0,66833.0,0.149625]
[1722434750663,0.081,66836.0,66832.0,0.29917972]
[1722434751102,0.081,66836.0,66832.0,0.44880572]
[1722434751313,0.081,66836.0,66833.0,0.149626]
[1722434751710,0.086,66836.0,66833.0,0.149626]
[1722434752221,0.005,66836.0,66835.0,0.363222]
[1722434752443,0.005,66836.0,66835.0,1.11126172]
[1722434752444,0.072166,66836.0,66835.0,1.11126172]
[1722434752661,0.072166,66836.0,66835.0,1.41050572]
[1722434752662,0.005,66836.0,66835.0,1.41050572]
[1722434752908,0.005,66836.0,66835.0,1.26074302]
[1722434753138,0.07216292,66836.0,66835.0,1.26074302]
[1722434753362,0.08955056,66837.0,66836.0,0.149619]
[1722434753576,0.07526412,66849.0,66836.0,0.299239]
[1722434753577,0.13432744,66842.0,66836.0,0.299239]
[1722434753807,0.07526412,66849.0,66835.0,0.81201772]
[1722434753808,0.004,66836.0,66835.0,0.81201772]
[1722434754028,0.13432744,66841.0,66838.0,0.149614]
[1722434754468,0.13432744,66841.0,66836.0,0.149618]
[1722434754728,0.21012744,66840.0,66837.0,0.149617]
[1722434755179,0.13432744,66839.0,66837.0,0.149617]
[1722434755429,0.0605,66838.0,66835.0,0.014]
[1722434755652,0.13432744,66836.0,66835.0,0.014]
[1722434755869,0.13432744,66836.0,66835.0,0.025]
[1722434756095,0.0605,66838.0,66835.0,0.025]
[1722434756321,0.00932938,66837.0,66835.0,0.014]
[1722434756761,0.00932938,66837.0,66834.0,0.149623]
[1722434756974,0.0605,66838.0,66834.0,0.149623]
[1722434757189,0.00932947,66837.0,66833.0,0.149626]
[1722434757406,0.00932947,66837.0,66830.0,0.299265]
[1722434757639,0.00932947,66837.0,66835.0,0.008]
[1722434757877,0.0605,66838.0,66832.0,0.149628]
[1722434758101,0.0605,66838.0,66836.0,0.00579872]
[1722434758327,0.0605,66838.0,66834.0,0.001]
[1722434758550,0.0605,66838.0,66837.0,0.00579828]
[1722434758769,0.06982918,66838.0,66835.0,0.009]
[1722434758982,0.06982918,66838.0,66837.0,0.00579824]
[1722434758983,0.0605,66838.0,66837.0,0.00579824]
[1722434759276,0.0605,66838.0,66836.0,0.00579868]
[1722434759490,0.0605,66838.0,66833.0,0.149626]
[1722434759491,0.0605,66838.0,66837.0,0.00579824]
[1722434759926,0.0605,66838.0,66834.0,0.149623]
[1722434760336,0.13437535,66835.0,66834.0,0.149623]
[1722434761226,0.13437535,66835.0,66833.0,0.149626]
[1722434761457,0.13437535,66835.0,66830.0,0.14955172]
[1722434761458,0.13437535,66835.0,66830.0,0.44881772]
[1722434761680,0.13437535,66834.0,66830.0,0.14955172]
[1722434761911,0.13437535,66835.0,66834.0,0.153624]
[1722434762343,0.0605,66838.0,66837.0,0.149617]
[1722434763024,0.0605,66838.0,66836.0,0.149619]
[1722434763453,0.0605,66838.0,66837.0,0.149617]
[1722434763914,0.15119008,66843.0,66842.0,0.149606]
[1722434764134,0.0005,66849.0,66845.0,0.598398]
[1722434764352,0.0005,66849.0,66848.0,0.448779]
[1722434764983,0.13487813,66849.0,66848.0,0.448779]
[1722434765259,0.0005,66849.0,66848.0,0.448779]
[1722434765901,0.13487996,66849.0,66848.0,0.747965]
[1722434766120,0.0005,66849.0,66848.0,0.448779]
[1722434766558,0.13487996,66849.0,66848.0,0.448779]
[1722434767279,0.13487996,66849.0,66848.0,0.462779]
[1722434767753,0.13487996,66849.0,66848.0,0.761965]
[1722434767979,0.13487996,66849.0,66848.0,1.21070272]
[1722434767980,0.0005,66849.0,66848.0,1.21070272]
[1722434768203,0.0005,66849.0,66848.0,1.42430272]
[1722434768486,0.1124979,66849.0,66848.0,1.99482899]
[1722434768748,0.1124979,66849.0,66848.0,2.11782899]
[1722434768749,0.0005,66849.0,66848.0,2.11782899]
[1722434768972,0.0005,66849.0,66848.0,2.12782899]
[1722434769419,0.0005,66849.0,66848.0,2.10982899]
[1722434769871,0.0005,66849.0,66848.0,2.11582899]
[1722434770107,0.00133,66849.0,66848.0,1.83064299]
[1722434770352,0.00133,66849.0,66848.0,1.81864299]
[1722434770592,0.00133,66849.0,66848.0,1.79564299]
[1722434770814,0.00133,66849.0,66848.0,1.38151672]
[1722434771086,0.00133,66849.0,66848.0,1.66670272]
[1722434771309,0.04610217,66849.0,66848.0,1.66670272]
[1722434771534,0.06719598,66850.0,66849.0,0.747952]
[1722434771899,9e-05,66852.0,66851.0,0.448758]
[1722434772098,9e-05,66852.0,66848.0,0.484]
[1722434772099,0.11191462,66850.0,66848.0,0.028]
[1722434772317,0.15116412,66851.0,66848.0,0.014]
[1722434772318,0.06,66849.0,66848.0,0.014]
[1722434772548,0.06,66849.0,66848.0,0.028]
[1722434772992,0.19429755,66849.0,66848.0,0.02038056]
[1722434773264,0.20959,66849.0,66848.0,0.00638056]
[1722434773521,0.51809866,66849.0,66848.0,0.00638056]
[1722434773752,0.01,66846.0,66831.0,0.0015542]
[1722434773975,0.00932766,66849.0,66828.0,0.000913]
[1722434773976,0.13434844,66833.0,66828.0,0.000913]
[1722434774202,0.19634844,66832.0,66828.0,0.000913]
[1722434774774,0.07476412,66829.0,66828.0,0.000913]
[1722434775004,0.0796,66830.0,66828.0,0.000913]
[1722434775869,0.13434366,66829.0,66828.0,0.000913]
[1722434776105,0.0796,66830.0,66828.0,0.000913]
[1722434776328,0.07476412,66829.0,66828.0,0.000913]
[1722434776577,0.23372998,66829.0,66828.0,0.000913]
[1722434777267,0.23572998,66829.0,66828.0,0.000913]
[1722434777493,0.08609498,66829.0,66828.0,0.000913]
[1722434777713,0.23572998,66829.0,66828.0,0.000913]
[1722434777938,0.22639912,66829.0,66828.0,0.000913]
[1722434778161,0.01133096,66829.0,66828.0,0.000913]
[1722434778617,0.16096596,66829.0,66828.0,0.000913]
[1722434778856,0.53500108,66829.0,66828.0,0.000913]
[1722434779081,1.14354308,66829.0,66828.0,0.000913]
[1722434779311,1.28694308,66829.0,66828.0,0.000913]
[1722434779546,1.27694308,66829.0,66828.0,0.000913]
[1722434779988,1.27494308,66829.0,66828.0,0.000913]
[1722434780231,1.27594308,66829.0,66828.0,0.001913]
[1722434780457,1.27494308,66829.0,66828.0,0.000913]
[1722434780674,1.28494308,66829.0,66828.0,0.000913]
[1722434780907,1.28594308,66829.0,66828.0,0.002913]
[1722434781130,1.28594473,66829.0,66828.0,0.002913]
[1722434781351,1.69588312,66829.0,66828.0,0.002913]
[1722434781577,1.132925,66824.0,66823.0,0.000913]
[1722434781806,1.33204948,66824.0,66823.0,0.000913]
[1722434782293,0.894622,66816.0,66801.0,0.44858472]
[1722434782518,1.26804829,66816.0,66801.0,0.44858472]
[1722434783242,0.89395517,66816.0,66801.0,0.44858472]
[1722434783478,1.19328417,66816.0,66796.0,0.44949772]
[1722434783958,0.59462617,66816.0,66799.0,0.299402]
[1722434784188,0.585293,66816.0,66800.0,0.149699]
[1722434784409,0.89395569,66816.0,66796.0,0.44949772]
[1722434784663,0.89795569,66816.0,66798.0,0.149704]
[1722434784910,0.888622,66816.0,66798.0,0.149704]
[1722434785174,0.888622,66816.0,66796.0,0.44949772]
[1722434785175,1.32728471,66816.0,66796.0,0.44949772]
[1722434786115,1.62761371,66816.0,66796.0,0.44949772]
[1722434786340,1.62761371,66816.0,66797.0,0.44858472]
[1722434786814,1.70168876,66816.0,66797.0,0.44858472]
[1722434787023,1.69768876,66816.0,66797.0,0.44858472]
[1722434787274,1.68835505,66816.0,66797.0,0.44858472]
[1722434787494,1.69669079,66816.0,66797.0,0.44858472]
[1722434787717,1.69669079,66816.0,66796.0,0.000913]
[1722434787942,1.70193138,66816.0,66815.0,0.009]
[1722434788151,1.73769079,66816.0,66815.0,0.009]
[1722434788384,1.71469079,66816.0,66815.0,0.009]
[1722434788836,1.83730645,66816.0,66815.0,0.008]
[1722434789067,1.36736179,66816.0,66815.0,0.008]
[1722434789283,1.63661574,66816.0,66815.0,0.008]
[1722434789504,1.68893083,66816.0,66815.0,0.008]
[1722434789944,1.72469024,66816.0,66815.0,0.008]
[1722434790397,1.71535505,66816.0,66815.0,0.008]
[1722434790625,1.72469064,66816.0,66815.0,0.008]
[1722434792624,1.68893123,66816.0,66815.0,0.008]
[1722434793047,1.69793123,66816.0,66815.0,0.008]
[1722434793259,1.74769064,66816.0,66815.0,0.008]
[1722434793752,1.74769064,66816.0,66796.0,0.000913]
[1722434793753,0.886635,66797.0,66796.0,0.000913]
[1722434794427,0.587221,66797.0,66796.0,0.000913]
[1722434794642,0.449121,66797.0,66796.0,0.000913]
[1722434794857,0.748535,66797.0,66796.0,0.000913]
[1722434795965,0.749535,66797.0,66796.0,0.000913]
[1722434799716,0.895135,66797.0,66796.0,0.000913]
[1722434800159,1.194549,66797.0,66796.0,0.000913]
[1722434802854,0.895135,66797.0,66796.0,0.000913]
[1722434803033,0.749535,66797.0,66796.0,0.000913]
[1722434807527,0.001,66797.0,66796.0,0.081413]
[1722434807976,0.001,66797.0,66796.0,0.08770361]
[1722434809461,0.02,66818.0,66796.0,0.08770361]
[1722434809730,0.149694,66803.0,66797.0,0.0015542]
[1722434809935,0.149689,66805.0,66796.0,0.08770361]
[1722434810152,0.149689,66805.0,66798.0,0.00628963]
[1722434810364,0.149687,66806.0,66797.0,0.00119523]
[1722434810830,0.149687,66806.0,66798.0,0.00628963]
[1722434811043,0.149685,66807.0,66798.0,0.00628963]
[1722434811330,0.149685,66807.0,66799.0,0.00146572]
[1722434811547,0.149682,66808.0,66799.0,0.00146572]
[1722434811755,0.149685,66807.0,66800.0,0.00628864]
[1722434811965,0.22445112,66806.0,66800.0,0.00628864]
[1722434812176,0.07476412,66806.0,66797.0,0.0015542]
[1722434812594,0.07476412,66806.0,66796.0,0.081413]
[1722434812595,0.08176412,66806.0,66798.0,0.00707583]
[1722434812816,0.01,66805.0,66799.0,0.0652]
[1722434813043,0.07667198,66826.0,66805.0,0.0607]
[1722434813044,0.0606,66826.0,66805.0,0.0607]
[1722434813263,0.26879898,66836.0,66823.0,0.299295]
[1722434813264,0.07476412,66836.0,66823.0,0.299295]
[1722434813504,0.149623,66835.0,66824.0,0.1369]
[1722434813761,0.07476412,66836.0,66824.0,0.1369]
[1722434813762,0.157625,66834.0,66824.0,0.14315528]
[1722434814009,0.00933171,66833.0,66824.0,0.14315528]
[1722434814239,0.149622,66835.0,66824.0,0.14315528]
[1722434814683,0.07476412,66829.0,66824.0,0.14315528]
[1722434815347,0.07476412,66836.0,66828.0,0.299275]
[1722434815569,0.07476412,66843.0,66828.0,0.14955172]
[1722434815793,0.0444912,66846.0,66828.0,0.14955172]
[1722434815794,0.149589,66850.0,66829.0,0.15655473]
[1722434816008,0.149591,66849.0,66838.0,0.0796]
[1722434816220,0.149596,66847.0,66838.0,0.0796]
[1722434816430,0.07476412,66844.0,66839.0,0.00695473]
[1722434816644,0.07476412,66844.0,66838.0,0.0796]
[1722434816894,0.07476412,66844.0,66840.0,0.00695324]
[1722434817118,0.014,66843.0,66839.0,0.00694874]
[1722434817333,0.07476412,66844.0,66838.0,0.0796]
[1722434817543,0.07476412,66844.0,66840.0,0.00694819]
[1722434817757,0.08476412,66844.0,66839.0,0.00794874]
[1722434817978,0.08476412,66844.0,66839.0,0.001]
[1722434817979,0.01,66844.0,66839.0,0.001]
[1722434818224,0.01,66844.0,66843.0,0.448812]
[1722434818450,0.01,66844.0,66843.0,0.89757172]